Workbook

Sheet الرئيسية

Sheet المديونية
A1: مسلسل | B1: الاسم | C1: =SUM($C$2:$C$1000) -> 495237 | D1: =SUM($D$2:$D$1000) -> 76350 | E1: =SUM($E$2:$E$1000) -> 418899
A2: =IF(B2="","",SUBTOTAL(3,$B$2:B2)) -> 1 | B2: =ورقة1!C3 -> المزرعة | C2: =ورقة1!D3 -> 73202 | D2: =ورقة1!E3 -> 12830 | E2: =ورقة1!F3 -> 60372
A3: =IF(B3="","",SUBTOTAL(3,$B$2:B3)) -> 2 | B3: =ورقة1!C4 -> ابو طارق | C3: =ورقة1!D4 -> 22828 | D3: =ورقة1!E4 -> 5000 | E3: =ورقة1!F4 -> 17828
A4: =IF(B4="","",SUBTOTAL(3,$B$2:B4)) -> 3 | B4: =ورقة1!C5 -> عبد المنعم الحوت | C4: =ورقة1!D5 -> 24580 | D4: =ورقة1!E5 -> 10000 | E4: =ورقة1!F5 -> 14580
A5: =IF(B5="","",SUBTOTAL(3,$B$2:B5)) -> 4 | B5: =ورقة1!C6 -> محمد سمبل | C5: =ورقة1!D6 -> 46965 | D5: =ورقة1!E6 -> 11000 | E5: =ورقة1!F6 -> 35965
A6: =IF(B6="","",SUBTOTAL(3,$B$2:B6)) -> 5 | B6: =ورقة1!C7 -> شحتة | C6: =ورقة1!D7 -> 0 | D6: =ورقة1!E7 -> 0 | E6: =ورقة1!F7 -> 0
A7: =IF(B7="","",SUBTOTAL(3,$B$2:B7)) -> 6 | B7: =ورقة1!C8 -> على اسماعيل | C7: =ورقة1!D8 -> 26645 | D7: =ورقة1!E8 -> 8000 | E7: =ورقة1!F8 -> 18654
A8: =IF(B8="","",SUBTOTAL(3,$B$2:B8)) -> 7 | B8: =ورقة1!C9 -> محمد ابراهيم علوية | C8: =ورقة1!D9 -> 1735 | D8: =ورقة1!E9 -> 900 | E8: =ورقة1!F9 -> 835
A9: =IF(B9="","",SUBTOTAL(3,$B$2:B9)) -> 8 | B9: =ورقة1!C10 -> فكرى | C9: =ورقة1!D10 -> 15830 | D9: =ورقة1!E10 -> 0 | E9: =ورقة1!F10 -> 15830
A10: =IF(B10="","",SUBTOTAL(3,$B$2:B10)) -> 9 | B10: =ورقة1!C11 -> سعيد العقيلى | C10: =ورقة1!D11 -> 3420 | D10: =ورقة1!E11 -> 2000 | E10: =ورقة1!F11 -> 1420
A11: =IF(B11="","",SUBTOTAL(3,$B$2:B11)) -> 10 | B11: =ورقة1!C12 -> محمد عبد الله | C11: =ورقة1!D12 -> 34765 | D11: =ورقة1!E12 -> 20000 | E11: =ورقة1!F12 -> 14765
A12: =IF(B12="","",SUBTOTAL(3,$B$2:B12)) -> 11 | B12: =ورقة1!C13 -> محمد على بدران | C12: =ورقة1!D13 -> 1630 | D12: =ورقة1!E13 -> 1620 | E12: =ورقة1!F13 -> 10
A13: =IF(B13="","",SUBTOTAL(3,$B$2:B13)) -> 12 | B13: =ورقة1!C14 -> وليد فوزى | C13: =ورقة1!D14 -> 3295 | D13: =ورقة1!E14 -> 1600 | E13: =ورقة1!F14 -> 1695
A14: =IF(B14="","",SUBTOTAL(3,$B$2:B14)) -> 13 | B14: =ورقة1!C15 -> ابراهيم يوسف | C14: =ورقة1!D15 -> 0 | D14: =ورقة1!E15 -> 0 | E14: =ورقة1!F15 -> 0
A15: =IF(B15="","",SUBTOTAL(3,$B$2:B15)) -> 14 | B15: =ورقة1!C16 -> احمد طنطاوى | C15: =ورقة1!D16 -> 3650 | D15: =ورقة1!E16 -> 3400 | E15: =ورقة1!F16 -> 250
A16: =IF(B16="","",SUBTOTAL(3,$B$2:B16)) -> 15 | B16: =ورقة1!C17 -> عميل | C16: =ورقة1!D17 -> 0 | D16: =ورقة1!E17 -> 0 | E16: =ورقة1!F17 -> 0
A17: =IF(B17="","",SUBTOTAL(3,$B$2:B17)) -> 16 | B17: =ورقة1!C18 -> عملاء مجمدون | C17: =ورقة1!D18 -> 236692 | D17: =ورقة1!E18 -> 0 | E17: =ورقة1!F18 -> 236695
A18: =IF(B18="","",SUBTOTAL(3,$B$2:B18)) -> 17 | B18: =ورقة1!C19 -> 0 | C18: =ورقة1!D19 -> 0 | D18: =ورقة1!E19 -> 0 | E18: =ورقة1!F19 -> 0
A19: =IF(B19="","",SUBTOTAL(3,$B$2:B19)) -> 18 | B19: =ورقة1!C20 -> 0 | C19: =ورقة1!D20 -> 0 | D19: =ورقة1!E20 -> 0 | E19: =ورقة1!F20 -> 0
A20: =IF(B20="","",SUBTOTAL(3,$B$2:B20)) -> 19 | B20: =ورقة1!C21 -> 0 | C20: =ورقة1!D21 -> 0 | D20: =ورقة1!E21 -> 0 | E20: =ورقة1!F21 -> 0
A21: =IF(B21="","",SUBTOTAL(3,$B$2:B21)) -> 20 | B21: =ورقة1!C22 -> 0 | C21: =ورقة1!D22 -> 0 | D21: =ورقة1!E22 -> 0 | E21: =ورقة1!F22 -> 0
A22: =IF(B22="","",SUBTOTAL(3,$B$2:B22)) ->  | C22: =IFERROR(#REF!*#REF!,"") ->  | E22: =IFERROR(C22-D22,"") -> 
A23: =IF(B23="","",SUBTOTAL(3,$B$2:B23)) ->  | C23: =IFERROR(#REF!*#REF!,"") -> 
A24: =IF(B24="","",SUBTOTAL(3,$B$2:B24)) ->  | C24: =IFERROR(#REF!*#REF!,"") -> 
A25: =IF(B25="","",SUBTOTAL(3,$B$2:B25)) ->  | C25: =IFERROR(#REF!*#REF!,"") -> 
A26: =IF(B26="","",SUBTOTAL(3,$B$2:B26)) ->  | C26: =IFERROR(#REF!*#REF!,"") -> 
A27: =IF(B27="","",SUBTOTAL(3,$B$2:B27)) ->  | C27: =IFERROR(#REF!*#REF!,"") -> 
A28: =IF(B28="","",SUBTOTAL(3,$B$2:B28)) ->  | C28: =IFERROR(#REF!*#REF!,"") -> 
A29: =IF(B29="","",SUBTOTAL(3,$B$2:B29)) ->  | C29: =IFERROR(#REF!*#REF!,"") -> 
A30: =IF(B30="","",SUBTOTAL(3,$B$2:B30)) ->  | C30: =IFERROR(#REF!*#REF!,"") -> 
A31: =IF(B31="","",SUBTOTAL(3,$B$2:B31)) ->  | C31: =IFERROR(#REF!*#REF!,"") -> 
A32: =IF(B32="","",SUBTOTAL(3,$B$2:B32)) ->  | C32: =IFERROR(#REF!*#REF!,"") -> 
A33: =IF(B33="","",SUBTOTAL(3,$B$2:B33)) ->  | C33: =IFERROR(#REF!*#REF!,"") -> 
A34: =IF(B34="","",SUBTOTAL(3,$B$2:B34)) ->  | C34: =IFERROR(#REF!*#REF!,"") -> 
A35: =IF(B35="","",SUBTOTAL(3,$B$2:B35)) ->  | C35: =IFERROR(#REF!*#REF!,"") -> 
A36: =IF(B36="","",SUBTOTAL(3,$B$2:B36)) ->  | C36: =IFERROR(#REF!*#REF!,"") -> 
A37: =IF(B37="","",SUBTOTAL(3,$B$2:B37)) ->  | C37: =IFERROR(#REF!*#REF!,"") -> 
A38: =IF(B38="","",SUBTOTAL(3,$B$2:B38)) ->  | C38: =IFERROR(#REF!*#REF!,"") -> 
A39: =IF(B39="","",SUBTOTAL(3,$B$2:B39)) ->  | C39: =IFERROR(#REF!*#REF!,"") -> 
A40: =IF(B40="","",SUBTOTAL(3,$B$2:B40)) ->  | C40: =IFERROR(#REF!*#REF!,"") -> 
A41: =IF(B41="","",SUBTOTAL(3,$B$2:B41)) ->  | C41: =IFERROR(#REF!*#REF!,"") -> 
A42: =IF(B42="","",SUBTOTAL(3,$B$2:B42)) ->  | C42: =IFERROR(#REF!*#REF!,"") -> 
A43: =IF(B43="","",SUBTOTAL(3,$B$2:B43)) ->  | C43: =IFERROR(#REF!*#REF!,"") -> 
A44: =IF(B44="","",SUBTOTAL(3,$B$2:B44)) ->  | C44: =IFERROR(#REF!*#REF!,"") -> 
A45: =IF(B45="","",SUBTOTAL(3,$B$2:B45)) ->  | C45: =IFERROR(#REF!*#REF!,"") -> 
A46: =IF(B46="","",SUBTOTAL(3,$B$2:B46)) ->  | C46: =IFERROR(#REF!*#REF!,"") -> 
A47: =IF(B47="","",SUBTOTAL(3,$B$2:B47)) ->  | C47: =IFERROR(#REF!*#REF!,"") -> 
A48: =IF(B48="","",SUBTOTAL(3,$B$2:B48)) ->  | C48: =IFERROR(#REF!*#REF!,"") -> 
A49: =IF(B49="","",SUBTOTAL(3,$B$2:B49)) ->  | C49: =IFERROR(#REF!*#REF!,"") -> 
A50: =IF(B50="","",SUBTOTAL(3,$B$2:B50)) ->  | C50: =IFERROR(#REF!*#REF!,"") -> 
A51: =IF(B51="","",SUBTOTAL(3,$B$2:B51)) ->  | C51: =IFERROR(#REF!*#REF!,"") -> 
A52: =IF(B52="","",SUBTOTAL(3,$B$2:B52)) ->  | C52: =IFERROR(#REF!*#REF!,"") -> 
A53: =IF(B53="","",SUBTOTAL(3,$B$2:B53)) ->  | C53: =IFERROR(#REF!*#REF!,"") -> 
A54: =IF(B54="","",SUBTOTAL(3,$B$2:B54)) ->  | C54: =IFERROR(#REF!*#REF!,"") -> 
A55: =IF(B55="","",SUBTOTAL(3,$B$2:B55)) ->  | C55: =IFERROR(#REF!*#REF!,"") -> 
A56: =IF(B56="","",SUBTOTAL(3,$B$2:B56)) ->  | C56: =IFERROR(#REF!*#REF!,"") -> 
A57: =IF(B57="","",SUBTOTAL(3,$B$2:B57)) ->  | C57: =IFERROR(#REF!*#REF!,"") -> 
A58: =IF(B58="","",SUBTOTAL(3,$B$2:B58)) ->  | C58: =IFERROR(#REF!*#REF!,"") -> 
A59: =IF(B59="","",SUBTOTAL(3,$B$2:B59)) ->  | C59: =IFERROR(#REF!*#REF!,"") -> 
A60: =IF(B60="","",SUBTOTAL(3,$B$2:B60)) ->  | C60: =IFERROR(#REF!*#REF!,"") -> 
A61: =IF(B61="","",SUBTOTAL(3,$B$2:B61)) ->  | C61: =IFERROR(#REF!*#REF!,"") -> 
A62: =IF(B62="","",SUBTOTAL(3,$B$2:B62)) ->  | C62: =IFERROR(#REF!*#REF!,"") -> 
A63: =IF(B63="","",SUBTOTAL(3,$B$2:B63)) ->  | C63: =IFERROR(#REF!*#REF!,"") -> 
A64: =IF(B64="","",SUBTOTAL(3,$B$2:B64)) ->  | C64: =IFERROR(#REF!*#REF!,"") -> 
A65: =IF(B65="","",SUBTOTAL(3,$B$2:B65)) ->  | C65: =IFERROR(#REF!*#REF!,"") -> 
A66: =IF(B66="","",SUBTOTAL(3,$B$2:B66)) ->  | C66: =IFERROR(#REF!*#REF!,"") -> 
A67: =IF(B67="","",SUBTOTAL(3,$B$2:B67)) ->  | C67: =IFERROR(#REF!*#REF!,"") ->  | E67: =IFERROR(C67-D67,"") -> 
A68: =IF(B68="","",SUBTOTAL(3,$B$2:B68)) ->  | C68: =IFERROR(#REF!*#REF!,"") -> 
A69: =IF(B69="","",SUBTOTAL(3,$B$2:B69)) ->  | C69: =IFERROR(#REF!*#REF!,"") -> 
A70: =IF(B70="","",SUBTOTAL(3,$B$2:B70)) ->  | C70: =IFERROR(#REF!*#REF!,"") -> 
A71: =IF(B71="","",SUBTOTAL(3,$B$2:B71)) ->  | C71: =IFERROR(#REF!*#REF!,"") -> 
A72: =IF(B72="","",SUBTOTAL(3,$B$2:B72)) ->  | C72: =IFERROR(#REF!*#REF!,"") -> 
A73: =IF(B73="","",SUBTOTAL(3,$B$2:B73)) ->  | C73: =IFERROR(#REF!*#REF!,"") -> 
A74: =IF(B74="","",SUBTOTAL(3,$B$2:B74)) ->  | C74: =IFERROR(#REF!*#REF!,"") -> 
A75: =IF(B75="","",SUBTOTAL(3,$B$2:B75)) ->  | C75: =IFERROR(#REF!*#REF!,"") -> 
A76: =IF(B76="","",SUBTOTAL(3,$B$2:B76)) ->  | C76: =IFERROR(#REF!*#REF!,"") -> 
A77: =IF(B77="","",SUBTOTAL(3,$B$2:B77)) ->  | C77: =IFERROR(#REF!*#REF!,"") -> 
A78: =IF(B78="","",SUBTOTAL(3,$B$2:B78)) ->  | C78: =IFERROR(#REF!*#REF!,"") -> 
A79: =IF(B79="","",SUBTOTAL(3,$B$2:B79)) ->  | C79: =IFERROR(#REF!*#REF!,"") -> 
A80: =IF(B80="","",SUBTOTAL(3,$B$2:B80)) ->  | C80: =IFERROR(#REF!*#REF!,"") -> 
A81: =IF(B81="","",SUBTOTAL(3,$B$2:B81)) ->  | C81: =IFERROR(#REF!*#REF!,"") -> 
A82: =IF(B82="","",SUBTOTAL(3,$B$2:B82)) ->  | C82: =IFERROR(#REF!*#REF!,"") -> 
A83: =IF(B83="","",SUBTOTAL(3,$B$2:B83)) ->  | C83: =IFERROR(#REF!*#REF!,"") -> 
A84: =IF(B84="","",SUBTOTAL(3,$B$2:B84)) ->  | C84: =IFERROR(#REF!*#REF!,"") -> 
A85: =IF(B85="","",SUBTOTAL(3,$B$2:B85)) ->  | C85: =IFERROR(#REF!*#REF!,"") -> 
A86: =IF(B86="","",SUBTOTAL(3,$B$2:B86)) ->  | C86: =IFERROR(#REF!*#REF!,"") -> 
A87: =IF(B87="","",SUBTOTAL(3,$B$2:B87)) ->  | C87: =IFERROR(#REF!*#REF!,"") -> 
A88: =IF(B88="","",SUBTOTAL(3,$B$2:B88)) ->  | C88: =IFERROR(#REF!*#REF!,"") -> 
A89: =IF(B89="","",SUBTOTAL(3,$B$2:B89)) ->  | C89: =IFERROR(#REF!*#REF!,"") -> 
A90: =IF(B90="","",SUBTOTAL(3,$B$2:B90)) ->  | C90: =IFERROR(#REF!*#REF!,"") -> 
A91: =IF(B91="","",SUBTOTAL(3,$B$2:B91)) ->  | C91: =IFERROR(#REF!*#REF!,"") -> 
A92: =IF(B92="","",SUBTOTAL(3,$B$2:B92)) ->  | C92: =IFERROR(#REF!*#REF!,"") -> 
A93: =IF(B93="","",SUBTOTAL(3,$B$2:B93)) ->  | C93: =IFERROR(#REF!*#REF!,"") -> 
A94: =IF(B94="","",SUBTOTAL(3,$B$2:B94)) ->  | C94: =IFERROR(#REF!*#REF!,"") -> 
A95: =IF(B95="","",SUBTOTAL(3,$B$2:B95)) ->  | C95: =IFERROR(#REF!*#REF!,"") -> 
A96: =IF(B96="","",SUBTOTAL(3,$B$2:B96)) ->  | C96: =IFERROR(#REF!*#REF!,"") -> 
A97: =IF(B97="","",SUBTOTAL(3,$B$2:B97)) ->  | C97: =IFERROR(#REF!*#REF!,"") -> 
A98: =IF(B98="","",SUBTOTAL(3,$B$2:B98)) ->  | C98: =IFERROR(#REF!*#REF!,"") -> 
A99: =IF(B99="","",SUBTOTAL(3,$B$2:B99)) ->  | C99: =IFERROR(#REF!*#REF!,"") -> 
A100: =IF(B100="","",SUBTOTAL(3,$B$2:B100)) ->  | C100: =IFERROR(#REF!*#REF!,"") -> 
A101: =IF(B101="","",SUBTOTAL(3,$B$2:B101)) ->  | C101: =IFERROR(#REF!*#REF!,"") -> 

Sheet 1
A1: مسلسل | B1: الوزن بالكيلو | C1: الصنف | D1: الاسم | E1: السعر | F1: =SUM($F$2:$F$992) -> 22335 | G1: =SUM($G$2:$G$992) -> 27500 | H1: =SUM($H$2:$H$992) -> -5165 | I1: التاريخ
A2: =IF(C2="","",SUBTOTAL(3,$C$2:C2)) -> 1 | B2: 1 | C2: دواء فورمالين | D2: شحتة | E2: 160 | F2: =IFERROR(B2*E2,"") -> 160 | G2: 27500 | H2: =IFERROR(F2-G2,"") -> -27340 | I2: =IF(D2="","",TODAY()) -> 2018-09-29
A3: =IF(C3="","",SUBTOTAL(3,$C$2:C3)) -> 2 | B3: 1 | C3: دواء بان فلور | D3: شحتة | E3: 150 | F3: 150 | H3: 150 | I3: 2018-09-29
A4: =IF(C4="","",SUBTOTAL(3,$C$2:C4)) -> 3 | B4: 2 | C4: شكارة بادى 23 | D4: شحتة | E4: 355 | F4: 710 | H4: 710 | I4: 2018-09-29
A5: =IF(C5="","",SUBTOTAL(3,$C$2:C5)) -> 4 | B5: 2 | C5: شكارة بادى 23 | D5: شحتة | E5: 355 | F5: 710 | H5: 710 | I5: 2018-09-29
A6: =IF(C6="","",SUBTOTAL(3,$C$2:C6)) -> 5 | B6: 2000 | C6: تسمين | D6: شحتة | E6: 7.25 | F6: 14500 | H6: 14500 | I6: 2018-09-29
A7: =IF(C7="","",SUBTOTAL(3,$C$2:C7)) -> 6 | B7: 16 | C7: شكارة بادى | D7: شحتة | E7: 355 | F7: 5680 | H7: 5680 | I7: 2018-09-29
A8: =IF(C8="","",SUBTOTAL(3,$C$2:C8)) -> 7 | B8: 1 | C8: دواء هـ سيلنيم | D8: شحتة | E8: 70 | F8: 70 | H8: 70 | I8: 2018-09-29
A9: =IF(C9="","",SUBTOTAL(3,$C$2:C9)) -> 8 | B9: 1 | C9: شكارة بادى | D9: شحتة | E9: 355 | F9: 355 | H9: 355 | I9: 2018-09-29
A10: =IF(C10="","",SUBTOTAL(3,$C$2:C10)) ->  | F10: 0 | H10: 0
A11: =IF(C11="","",SUBTOTAL(3,$C$2:C11)) ->  | F11: 0 | H11: 0
A12: =IF(C12="","",SUBTOTAL(3,$C$2:C12)) ->  | F12: 0 | H12: 0
A13: =IF(C13="","",SUBTOTAL(3,$C$2:C13)) ->  | F13: 0 | H13: 0
A14: =IF(C14="","",SUBTOTAL(3,$C$2:C14)) ->  | F14: 0 | H14: 0
A15: =IF(C15="","",SUBTOTAL(3,$C$2:C15)) ->  | F15: 0 | H15: 0
A16: =IF(C16="","",SUBTOTAL(3,$C$2:C16)) ->  | F16: 0 | H16: 0
A17: =IF(C17="","",SUBTOTAL(3,$C$2:C17)) ->  | F17: 0 | H17: 0
A18: =IF(C18="","",SUBTOTAL(3,$C$2:C18)) ->  | F18: 0 | H18: 0
A19: =IF(C19="","",SUBTOTAL(3,$C$2:C19)) ->  | F19: 0 | H19: 0
A20: =IF(C20="","",SUBTOTAL(3,$C$2:C20)) ->  | F20: 0 | H20: 0
A21: =IF(C21="","",SUBTOTAL(3,$C$2:C21)) ->  | F21: 0 | H21: 0
A22: =IF(C22="","",SUBTOTAL(3,$C$2:C22)) ->  | F22: 0 | H22: 0
A23: =IF(C23="","",SUBTOTAL(3,$C$2:C23)) ->  | F23: 0 | H23: 0
A24: =IF(C24="","",SUBTOTAL(3,$C$2:C24)) ->  | F24: 0 | H24: 0
A25: =IF(C25="","",SUBTOTAL(3,$C$2:C25)) ->  | F25: 0 | H25: 0
A26: =IF(C26="","",SUBTOTAL(3,$C$2:C26)) ->  | F26: 0 | H26: 0
A27: =IF(C27="","",SUBTOTAL(3,$C$2:C27)) ->  | F27: 0 | H27: 0
A28: =IF(C28="","",SUBTOTAL(3,$C$2:C28)) ->  | F28: 0 | H28: 0
A29: =IF(C29="","",SUBTOTAL(3,$C$2:C29)) ->  | F29: 0 | H29: 0
A30: =IF(C30="","",SUBTOTAL(3,$C$2:C30)) ->  | F30: 0 | H30: 0
A31: =IF(C31="","",SUBTOTAL(3,$C$2:C31)) ->  | F31: 0 | H31: 0
A32: =IF(C32="","",SUBTOTAL(3,$C$2:C32)) ->  | F32: 0 | H32: 0
A33: =IF(C33="","",SUBTOTAL(3,$C$2:C33)) ->  | F33: 0 | H33: 0
A34: =IF(C34="","",SUBTOTAL(3,$C$2:C34)) ->  | F34: 0 | H34: 0
A35: =IF(C35="","",SUBTOTAL(3,$C$2:C35)) ->  | F35: 0 | H35: 0
A36: =IF(C36="","",SUBTOTAL(3,$C$2:C36)) ->  | F36: 0 | H36: 0
A37: =IF(C37="","",SUBTOTAL(3,$C$2:C37)) ->  | F37: 0 | H37: 0
A38: =IF(C38="","",SUBTOTAL(3,$C$2:C38)) ->  | F38: 0 | H38: 0
A39: =IF(C39="","",SUBTOTAL(3,$C$2:C39)) ->  | F39: 0 | H39: 0
A40: =IF(C40="","",SUBTOTAL(3,$C$2:C40)) ->  | F40: 0 | H40: 0
A41: =IF(C41="","",SUBTOTAL(3,$C$2:C41)) ->  | F41: 0 | H41: 0
A42: =IF(C42="","",SUBTOTAL(3,$C$2:C42)) ->  | F42: 0 | H42: 0
A43: =IF(C43="","",SUBTOTAL(3,$C$2:C43)) ->  | F43: 0 | H43: 0
A44: =IF(C44="","",SUBTOTAL(3,$C$2:C44)) ->  | F44: 0 | H44: 0
A45: =IF(C45="","",SUBTOTAL(3,$C$2:C45)) ->  | F45: 0 | H45: 0
A46: =IF(C46="","",SUBTOTAL(3,$C$2:C46)) ->  | F46: 0 | H46: 0
A47: =IF(C47="","",SUBTOTAL(3,$C$2:C47)) ->  | F47: 0 | H47: 0
A48: =IF(C48="","",SUBTOTAL(3,$C$2:C48)) ->  | F48: 0 | H48: 0
A49: =IF(C49="","",SUBTOTAL(3,$C$2:C49)) ->  | F49: 0 | H49: 0
A50: =IF(C50="","",SUBTOTAL(3,$C$2:C50)) ->  | F50: 0 | H50: 0
A51: =IF(C51="","",SUBTOTAL(3,$C$2:C51)) ->  | F51: 0 | H51: 0
A52: =IF(C52="","",SUBTOTAL(3,$C$2:C52)) ->  | F52: 0 | H52: 0
A53: =IF(C53="","",SUBTOTAL(3,$C$2:C53)) ->  | F53: 0 | H53: 0
A54: =IF(C54="","",SUBTOTAL(3,$C$2:C54)) ->  | F54: 0 | H54: 0
A55: =IF(C55="","",SUBTOTAL(3,$C$2:C55)) ->  | F55: 0 | H55: 0
A56: =IF(C56="","",SUBTOTAL(3,$C$2:C56)) ->  | F56: 0 | H56: 0
A57: =IF(C57="","",SUBTOTAL(3,$C$2:C57)) ->  | F57: 0 | H57: 0
A58: =IF(C58="","",SUBTOTAL(3,$C$2:C58)) ->  | F58: 0 | H58: 0
A59: =IF(C59="","",SUBTOTAL(3,$C$2:C59)) ->  | F59: =IFERROR(B59*E59,"") -> 0 | H59: =IFERROR(F59-G59,"") -> 0 | I59: =IF(D59="","",TODAY()) -> 
A60: =IF(C60="","",SUBTOTAL(3,$C$2:C60)) ->  | F60: 0 | H60: 0
A61: =IF(C61="","",SUBTOTAL(3,$C$2:C61)) ->  | F61: 0 | H61: 0
A62: =IF(C62="","",SUBTOTAL(3,$C$2:C62)) ->  | F62: 0 | H62: 0
A63: =IF(C63="","",SUBTOTAL(3,$C$2:C63)) ->  | F63: 0 | H63: 0
A64: =IF(C64="","",SUBTOTAL(3,$C$2:C64)) ->  | F64: 0 | H64: 0
A65: =IF(C65="","",SUBTOTAL(3,$C$2:C65)) ->  | F65: 0 | H65: 0
A66: =IF(C66="","",SUBTOTAL(3,$C$2:C66)) ->  | F66: 0 | H66: 0
A67: =IF(C67="","",SUBTOTAL(3,$C$2:C67)) ->  | F67: 0 | H67: 0
A68: =IF(C68="","",SUBTOTAL(3,$C$2:C68)) ->  | F68: 0 | H68: 0
A69: =IF(C69="","",SUBTOTAL(3,$C$2:C69)) ->  | F69: 0 | H69: 0
A70: =IF(C70="","",SUBTOTAL(3,$C$2:C70)) ->  | F70: 0 | H70: 0
A71: =IF(C71="","",SUBTOTAL(3,$C$2:C71)) ->  | F71: 0 | H71: 0
A72: =IF(C72="","",SUBTOTAL(3,$C$2:C72)) ->  | F72: 0 | H72: 0
A73: =IF(C73="","",SUBTOTAL(3,$C$2:C73)) ->  | F73: 0 | H73: 0
A74: =IF(C74="","",SUBTOTAL(3,$C$2:C74)) ->  | F74: 0 | H74: 0
A75: =IF(C75="","",SUBTOTAL(3,$C$2:C75)) ->  | F75: 0 | H75: 0
A76: =IF(C76="","",SUBTOTAL(3,$C$2:C76)) ->  | F76: 0 | H76: 0
A77: =IF(C77="","",SUBTOTAL(3,$C$2:C77)) ->  | F77: 0 | H77: 0
A78: =IF(C78="","",SUBTOTAL(3,$C$2:C78)) ->  | F78: 0 | H78: 0
A79: =IF(C79="","",SUBTOTAL(3,$C$2:C79)) ->  | F79: 0 | H79: 0
A80: =IF(C80="","",SUBTOTAL(3,$C$2:C80)) ->  | F80: 0 | H80: 0
A81: =IF(C81="","",SUBTOTAL(3,$C$2:C81)) ->  | F81: 0 | H81: 0
A82: =IF(C82="","",SUBTOTAL(3,$C$2:C82)) ->  | F82: 0 | H82: 0
A83: =IF(C83="","",SUBTOTAL(3,$C$2:C83)) ->  | F83: 0 | H83: 0
A84: =IF(C84="","",SUBTOTAL(3,$C$2:C84)) ->  | F84: 0 | H84: 0
A85: =IF(C85="","",SUBTOTAL(3,$C$2:C85)) ->  | F85: 0 | H85: 0
A86: =IF(C86="","",SUBTOTAL(3,$C$2:C86)) ->  | F86: 0 | H86: 0
A87: =IF(C87="","",SUBTOTAL(3,$C$2:C87)) ->  | F87: 0 | H87: 0
A88: =IF(C88="","",SUBTOTAL(3,$C$2:C88)) ->  | F88: 0 | H88: 0
A89: =IF(C89="","",SUBTOTAL(3,$C$2:C89)) ->  | F89: 0 | H89: 0
A90: =IF(C90="","",SUBTOTAL(3,$C$2:C90)) ->  | F90: 0 | H90: 0
A91: =IF(C91="","",SUBTOTAL(3,$C$2:C91)) ->  | F91: 0 | H91: 0
A92: =IF(C92="","",SUBTOTAL(3,$C$2:C92)) ->  | F92: 0 | H92: 0
A93: =IF(C93="","",SUBTOTAL(3,$C$2:C93)) ->  | F93: 0 | H93: 0

Sheet المزرعة
A1: مسلسل | B1: الوزن بالكيلو | C1: الصنف | D1: الاسم | E1: السعر | F1: =SUM($F$2:$F$999) -> 73202 | G1: =SUM($G$2:$G$999) -> 12830 | H1: =SUM($H$2:$H$999) -> 60372 | I1: التاريخ
A2: 1 | B2: 0 | C2: المديونية | D2: المزرعة | F2: 73202 | G2: 12830 | H2: 60372 | I2: 2018-09-24

Sheet ابو طارق
A1: مسلسل | B1: الوزن بالكيلو | C1: الصنف | D1: الاسم | E1: السعر | F1: =SUM($F$2:$F$994) -> 22828 | G1: =SUM($G$2:$G$994) -> 5000 | H1: =SUM($H$2:$H$994) -> 17828 | I1: التاريخ
A2: 1 | B2: 0 | C2: حساب قديم | D2: ابو طارق | F2: 22828 | G2: 5000 | H2: 17828 | I2: 2018-09-29

Sheet عبد المنعم الحوت
A1: مسلسل | B1: الوزن بالكيلو | C1: الصنف | D1: الاسم | E1: السعر | F1: =SUM($F$2:$F$999) -> 24580 | G1: =SUM($G$2:$G$999) -> 10000 | H1: =SUM($H$2:$H$999) -> 14580 | I1: التاريخ
A2: 1 | B2: 0 | C2: صافى الحساب القديم | D2: عبد المنعم الحوت | F2: 24580 | G2: 10000 | H2: 14580 | I2: 2018-09-24

Sheet محمد سمبل
A1: مسلسل | B1: الوزن بالكيلو | C1: الصنف | D1: الاسم | E1: السعر | F1: =SUM($F$2:$F$999) -> 46965 | G1: =SUM($G$2:$G$999) -> 11000 | H1: =SUM($H$2:$H$999) -> 35965 | I1: التاريخ
A2: 1 | B2: 0 | C2: سداد | D2: محمد سمبل | F2: 46965 | G2: 11000 | H2: 35965 | I2: 2018-09-05

Sheet شحتة
A1: مسلسل | B1: الوزن بالكيلو | C1: الصنف | D1: الاسم | E1: السعر | F1: =SUM($F$2:$F$999) -> 0 | G1: =SUM($G$2:$G$999) -> 0 | H1: =SUM($H$2:$H$999) -> 0 | I1: التاريخ

Sheet على اسماعيل
A1: مسلسل | B1: الوزن بالكيلو | C1: الصنف | D1: الاسم | E1: السعر | F1: =SUM($F$2:$F$999) -> 26645 | G1: =SUM($G$2:$G$999) -> 8000 | H1: =SUM($H$2:$H$999) -> 18654 | I1: التاريخ
F2: 26645 | G2: 8000 | H2: 18654 | I2: 2018-09-01 | K2: 2018-09-19
K3: 2018-09-20
K4: 2018-09-20
K5: 2018-09-23
K6: 2018-09-23
K7: 2018-09-25
K8: 2018-09-25
K9: 2018-09-27

Sheet محمد ابراهيم علوية
A1: مسلسل | B1: الوزن بالكيلو | C1: الصنف | D1: الاسم | E1: السعر | F1: =SUM($F$2:$F$1000) -> 1735 | G1: =SUM($G$2:$G$1000) -> 900 | H1: =SUM($H$2:$H$1000) -> 835 | I1: التاريخ
A2: 1 | B2: 0 | C2: سداد | D2: محمد ابراهيم علوية | F2: 1735 | G2: 900 | H2: 835 | I2: 2018-09-22

Sheet فكرى
A1: مسلسل | B1: الوزن بالكيلو | C1: الصنف | D1: الاسم | E1: السعر | F1: =SUM($F$2:$F$1000) -> 15830 | G1: =SUM($G$2:$G$1000) -> 0 | H1: =SUM($H$2:$H$1000) -> 15830 | I1: التاريخ
A2: 1 | B2: 0 | C2: صافى الحساب القديم | D2: فكرى | F2: 15830 | G2: 0 | H2: 15830 | I2: 2018-09-23

Sheet سعيد العقيلى
A1: مسلسل | B1: الوزن بالكيلو | C1: الصنف | D1: الاسم | E1: السعر | F1: =SUM($F$2:$F$1000) -> 3420 | G1: =SUM($G$2:$G$1000) -> 2000 | H1: =SUM($H$2:$H$1000) -> 1420 | I1: التاريخ
A2: 1 | B2: 0 | C2: سداد | D2: سعيد العقيلى | F2: 3420 | G2: 2000 | H2: 1420 | I2: 2018-09-18

Sheet عميل
A1: مسلسل | B1: الوزن بالكيلو | C1: الصنف | D1: الاسم | E1: السعر | F1: =SUM($F$2:$F$1000) -> 0 | G1: =SUM($G$2:$G$1000) -> 0 | H1: =SUM($H$2:$H$1000) -> 0 | I1: التاريخ

Sheet محمد عبد الله
A1: مسلسل | B1: الوزن بالكيلو | C1: الصنف | D1: الاسم | E1: السعر | F1: =SUM($F$2:$F$1000) -> 34765 | G1: =SUM($G$2:$G$1000) -> 20000 | H1: =SUM($H$2:$H$1000) -> 14765 | I1: التاريخ
A2: 1 | B2: 0 | C2: سداد | D2: محمد عبد الله | F2: 34765 | G2: 20000 | H2: 14765 | I2: 2018-09-16

Sheet محمد على بدران
A1: مسلسل | B1: الوزن بالكيلو | C1: الصنف | D1: الاسم | E1: السعر | F1: =SUM($F$2:$F$1000) -> 1630 | G1: =SUM($G$2:$G$1000) -> 1620 | H1: =SUM($H$2:$H$1000) -> 10 | I1: التاريخ
A2: 1 | B2: 0 | C2: سداد | D2: محمد على بدران | F2: 1630 | G2: 1620 | H2: 10 | I2: 2018-09-17

Sheet وليد فوزى
A1: مسلسل | B1: الوزن بالكيلو | C1: الصنف | D1: الاسم | E1: السعر | F1: =SUM($F$2:$F$1000) -> 3295 | G1: =SUM($G$2:$G$1000) -> 1600 | H1: =SUM($H$2:$H$1000) -> 1695 | I1: التاريخ
A2: 1 | B2: 0 | C2: سداد | D2: وليد فوزى | F2: 3295 | G2: 1600 | H2: 1695 | I2: 32/9

Sheet ابراهيم يوسف
A1: مسلسل | B1: الوزن بالكيلو | C1: الصنف | D1: الاسم | E1: السعر | F1: =SUM($F$2:$F$1000) -> 0 | G1: =SUM($G$2:$G$1000) -> 0 | H1: =SUM($H$2:$H$1000) -> 0 | I1: التاريخ

Sheet احمد طنطاوى
A1: مسلسل | B1: الوزن بالكيلو | C1: الصنف | D1: الاسم | E1: السعر | F1: =SUM($F$2:$F$1000) -> 3650 | G1: =SUM($G$2:$G$1000) -> 3400 | H1: =SUM($H$2:$H$1000) -> 250 | I1: التاريخ
A2: 1 | B2: 0 | C2: سداد | D2: احمد طنطاوى | F2: 3650 | G2: 3400 | H2: 250 | I2: 2018-09-10

Sheet Setting (hidden)
A1: اسماء الأصناف | B1: سعر الكيلو | E1: أسماء العملاء
A2: بلدى | B2: 2.5 | E2: عميل رقم 1
A3: ساسو | B3: 3 | E3: عميل رقم 2
A4: دقى | B4: 3.5 | E4: عميل رقم 3
A5: فيومى | B5: 4 | E5: عميل رقم 4
A6: دشيشة | B6: 4.5 | E6: عميل رقم 5
A7: ردة | B7: 4.5 | E7: عميل رقم 6
A8: علف بط | B8: 5 | E8: عميل رقم 7
A9: بياض | B9: 5 | E9: عميل رقم 8
A10: تسمين | B10: 6.5 | E10: عميل رقم 9
A11: بادى نامى خشن | B11: 7 | E11: عميل رقم 10
A12: بادى نامى ناعم | B12: 7 | E12: عميل رقم 11
A13: نامى خشن | B13: 7 | E13: عميل رقم 12
A14: بادى ناعم | B14: 7.5 | E14: عميل رقم 13
A15: مولر | B15: 15 | E15: عميل رقم 14
A16: موسكوفى | B16: 18 | E16: عميل رقم 15
A17: رومى | B17: 30 | E17: عميل رقم 16
E18: عميل رقم 17
E19: عميل رقم 18
E20: عميل رقم 19
E21: عميل رقم 20

Sheet ورقة1
B2: م | C2: اسم العميل | D2: اجمالى الحساب | E2: سدد | F2: باقى المديونية | G2: التاريخ
B3: 1 | C3: المزرعة | D3: =المزرعة!F1 -> 73202 | E3: =المزرعة!G1 -> 12830 | F3: =المزرعة!H1 -> 60372
B4: 2 | C4: ابو طارق | D4: ='ابو طارق'!F1 -> 22828 | E4: ='ابو طارق'!G1 -> 5000 | F4: ='ابو طارق'!H1 -> 17828
B5: 3 | C5: عبد المنعم الحوت | D5: ='عبد المنعم الحوت'!F1 -> 24580 | E5: ='عبد المنعم الحوت'!G1 -> 10000 | F5: ='عبد المنعم الحوت'!H1 -> 14580
B6: 4 | C6: محمد سمبل | D6: ='محمد سمبل'!F1 -> 46965 | E6: ='محمد سمبل'!G1 -> 11000 | F6: ='محمد سمبل'!H1 -> 35965
B7: 5 | C7: شحتة | D7: =شحتة!F1 -> 0 | E7: =شحتة!G1 -> 0 | F7: =شحتة!H1 -> 0
B8: 6 | C8: على اسماعيل | D8: ='على اسماعيل'!F1 -> 26645 | E8: ='على اسماعيل'!G1 -> 8000 | F8: ='على اسماعيل'!H1 -> 18654
B9: 7 | C9: محمد ابراهيم علوية | D9: ='محمد ابراهيم علوية'!F1 -> 1735 | E9: ='محمد ابراهيم علوية'!G1 -> 900 | F9: ='محمد ابراهيم علوية'!H1 -> 835
B10: 8 | C10: فكرى | D10: =فكرى!F1 -> 15830 | E10: =فكرى!G1 -> 0 | F10: =فكرى!H1 -> 15830
B11: 9 | C11: سعيد العقيلى | D11: ='سعيد العقيلى'!F1 -> 3420 | E11: ='سعيد العقيلى'!G1 -> 2000 | F11: ='سعيد العقيلى'!H1 -> 1420
B12: 10 | C12: محمد عبد الله | D12: ='محمد عبد الله'!F1 -> 34765 | E12: ='محمد عبد الله'!G1 -> 20000 | F12: ='محمد عبد الله'!H1 -> 14765
B13: 11 | C13: محمد على بدران | D13: ='محمد على بدران'!F1 -> 1630 | E13: ='محمد على بدران'!G1 -> 1620 | F13: ='محمد على بدران'!H1 -> 10
B14: 12 | C14: وليد فوزى | D14: ='وليد فوزى'!F1 -> 3295 | E14: ='وليد فوزى'!G1 -> 1600 | F14: ='وليد فوزى'!H1 -> 1695
B15: 13 | C15: ابراهيم يوسف | D15: ='ابراهيم يوسف'!F1 -> 0 | E15: ='ابراهيم يوسف'!G1 -> 0 | F15: ='ابراهيم يوسف'!H1 -> 0
B16: 14 | C16: احمد طنطاوى | D16: ='احمد طنطاوى'!F1 -> 3650 | E16: ='احمد طنطاوى'!G1 -> 3400 | F16: ='احمد طنطاوى'!H1 -> 250
B17: 15 | C17: عميل | D17: =عميل!F1 -> 0 | E17: =عميل!G1 -> 0 | F17: =عميل!H1 -> 0
C18: عملاء مجمدون | D18: ='عملاء مجمدون'!F1 -> 236692 | E18: ='عملاء مجمدون'!G1 -> 0 | F18: ='عملاء مجمدون'!H1 -> 236695

Sheet عملاء مجمدون
A1: مسلسل | B1: الوزن بالكيلو | C1: الصنف | D1: الاسم | E1: السعر | F1: =SUM($F$2:$F$1000) -> 236692 | G1: =SUM($G$2:$G$1000) -> 0 | H1: =SUM($H$2:$H$1000) -> 236695 | I1: التاريخ
D2: احمد عويس | F2: 6546 | H2: 6546
D3: محمد حفناوى | F3: 250 | H3: 250
D4: محمد اسماعيل الطويل | F4: 230 | H4: 230
D5: السيد ابو احمد | F5: 2036-11-21 | H5: 50000
D6: حازم المظلوم | F6: 2335 | H6: 2335
D7: كرم كراسيع | F7: 485 | H7: 485
D8: عبده عبد السميع | F8: 2970 | H8: 2970
D9: السيد برعى | F9: 6815 | H9: 6818
D10: احمد المحامى | F10: 2300 | H10: 2300
D11: احمد السيد احمد | F11: 2895 | H11: 2895
D12: محمد حسن | F12: 4920 | H12: 4920
D13: مصباح البس | F13: 1600 | H13: 1600
D14: ابو حسن | F14: 1730 | H14: 1730
D15: الشيخ محمد | F15: 560 | H15: 560
D16: وائل كسير | F16: 4115 | H16: 4115
D17: سليمان علوية | F17: 2720 | H17: 2720
D18: الشيخ عوف | F18: 5070 | H18: 5070
D19: احمد هيكل | F19: 1500 | H19: 1500
D20: محمد العرينى | F20: 10000 | H20: 10000
D21: ابو اهين | F21: 2300 | H21: 2300
D22: فايز | F22: 2100 | H22: 2100
D23: كمال القراض | F23: 1911 | H23: 1911
D24: خالد الحاجر | F24: 13000 | H24: 13000
D25: ابراهيم البعبولى | F25: 1970 | H25: 1970
D26: السيد محمود | F26: 3000 | H26: 3000
D27: محمد ابو النور | F27: 6000 | H27: 6000
D28: محمد جمال | F28: 700 | H28: 700
D29: احمد ساسو | F29: 1700 | H29: 1700
D30: ابراهيم ساسو | F30: 565 | H30: 565
D31: احمد الهادى | F31: 3475 | H31: 3475
D32: ماهر البعبولى | F32: 3925 | H32: 3925
D33: مجدى | F33: 17205 | H33: 17205
D34: السيد عبد اللطيف | F34: 2000 | H34: 2000
D35: ابراهيم عشماوى | F35: 7000 | H35: 7000
D36: ابو اشرف | F36: 38900 | H36: 38900
D37: كرم حجازى | F37: 23900 | H37: 23900
